bitfinex/quotes_SOLUSD_20250313
["timestamp","ask_amount","ask_price","bid_price","bid_amount"]
[1741843721954,38.41916933,124.66,124.63,19.0108]
[1741843722141,38.44916933,124.67,124.63,7.46]
[1741843722954,38.41916933,124.66,124.63,7.46]
[1741843723158,38.41916933,124.64,124.63,7.46]
[1741843723340,38.41916933,124.66,124.63,7.46]
[1741843723953,38.41916933,124.64,124.61,0.063]
[1741843725853,38.41916933,124.63,124.61,0.063]
[1741843726155,38.41916933,124.64,124.61,0.063]
[1741843726544,38.41916933,124.62,124.61,0.063]
[1741843726947,38.70349247,124.62,124.61,0.0001]
[1741843727261,38.41916933,124.63,124.61,0.0001]
[1741843727559,38.5613309,124.62,124.61,0.0001]
[1741843727956,46.5856309,124.62,124.61,0.0001]
[1741843728564,46.72779247,124.62,124.61,0.0001]
[1741843728753,46.5856309,124.62,124.61,0.0001]
[1741843730163,46.72779247,124.62,124.61,0.0001]
[1741843731360,46.44346933,124.62,124.61,0.0001]
[1741843731665,46.47306933,124.63,124.61,0.0001]
[1741843734363,24.06472757,124.63,124.61,0.0001]
[1741843734662,0.03,124.63,124.61,0.0001]
[1741843734962,24.06472757,124.63,124.61,0.0001]
[1741843736263,24.03472757,124.62,124.61,0.0001]
[1741843737164,24.06472757,124.63,124.61,0.0001]
[1741843738259,0.03,124.63,124.61,0.0001]
[1741843738488,0.03,124.63,124.61,7.4001]
[1741843739966,0.03,124.63,124.62,24.03472757]
[1741843740266,0.03,124.63,124.61,26.4109]
[1741843742872,0.03,124.63,124.61,58.47052757]
[1741843743060,0.03,124.63,124.61,26.4109]
[1741843743547,0.03,124.63,124.61,50.44562757]
[1741843743873,0.03,124.63,124.62,32.05902757]
[1741843744058,0.03,124.63,124.62,50.850838]
[1741843744263,0.03,124.63,124.62,205.20379957]
[1741843744770,0.03,124.67,124.66,20.14216157]
[1741843744959,0.03,124.67,124.66,70.44552757]
[1741843745163,0.03,124.67,124.66,46.4108]
[1741843746056,0.03,124.67,124.66,70.44552757]
[1741843746472,0.03,124.67,124.66,46.4108]
[1741843746653,0.03,124.67,124.66,7.4]
[1741843746853,24.06472757,124.67,124.63,7.4]
[1741843747059,24.03472757,124.65,124.63,7.4]
[1741843747351,24.03472757,124.65,124.61,19.0109]
[1741843748163,24.03472757,124.66,124.61,19.0109]
[1741843748481,0.03,124.67,124.66,20.0]
[1741843748648,0.03,124.67,124.66,27.44]
[1741843749049,0.03,124.67,124.66,51.47472757]
[1741843749669,0.03,124.67,124.66,27.44]
[1741843752268,0.03,124.67,124.66,7.44]
[1741843754474,0.03,124.67,124.66,7.4]
[1741843755871,8.0218,124.66,124.63,26.4108]
[1741843756370,8.0218,124.66,124.63,19.0108]
[1741843756981,38.41094292,124.64,124.61,7.4001]
[1741843757670,38.41094292,124.65,124.61,7.4001]
[1741843757974,46.43394292,124.65,124.61,7.4001]
[1741843758270,46.19684292,124.67,124.61,45.81104292]
[1741843758573,54.21814292,124.67,124.61,45.81104292]
[1741843759477,38.41094292,124.63,124.61,0.0001]
[1741843759858,38.41094292,124.62,124.61,0.0001]
[1741843760058,8.0224,124.65,124.61,0.0001]
[1741843760261,46.43334292,124.65,124.61,0.0001]
[1741843760483,38.41094292,124.64,124.61,0.0001]
[1741843761000,38.41094292,124.62,124.61,0.0001]
[1741843761177,38.55310449,124.62,124.61,0.0001]
[1741843762478,46.57740449,124.62,124.61,0.0001]
[1741843762868,0.14216157,124.63,124.61,0.0001]
[1741843762869,38.41094292,124.63,124.61,0.0001]
[1741843763180,46.43454292,124.64,124.61,0.0001]
[1741843763380,38.41094292,124.62,124.61,0.0001]
[1741843763681,38.55310449,124.62,124.61,0.0001]
[1741843765177,46.71956606,124.62,124.61,0.0001]
[1741843765363,65.36921492,124.62,124.61,0.0001]
[1741843765683,46.71956606,124.62,124.61,0.0001]
[1741843766180,65.36921492,124.62,124.61,0.0001]
[1741843766775,46.57740449,124.62,124.61,0.0001]
[1741843766959,8.0239,124.63,124.61,0.0001]
[1741843767465,46.43484292,124.63,124.61,0.0001]
[1741843767668,38.41094292,124.62,124.61,0.0001]
[1741843768565,38.55310449,124.62,124.61,0.0001]
[1741843769266,46.57740449,124.62,124.61,0.0001]
[1741843769577,8.0243,124.62,124.61,0.0001]
[1741843770973,46.43524292,124.62,124.61,0.0001]
[1741843772284,32.20522017,124.62,124.61,0.0001]
[1741843773387,32.0630586,124.62,124.61,0.0001]
[1741843773691,32.20522017,124.62,124.61,0.0001]
[1741843779486,32.34738174,124.62,124.61,0.0001]
[1741843779688,0.14216157,124.6,124.52,15.2371]
[1741843779892,24.0387586,124.57,124.52,15.2371]
[1741843780192,24.0387586,124.58,124.53,24.0387586]
[1741843780495,24.0387586,124.56,124.52,6.2224]
[1741843781065,24.0387586,124.57,124.52,6.2224]
[1741843781266,32.0663586,124.57,124.52,6.2224]
[1741843781501,24.0387586,124.56,124.52,6.2224]
[1741843781704,24.0387586,124.56,124.51,7.36]
[1741843781902,28.0966,124.57,124.51,7.36]
[1741843782095,24.0387586,124.56,124.51,31.3987586]
[1741843782904,32.0663586,124.57,124.51,31.3987586]
[1741843784373,8.0276,124.57,124.53,24.0387586]
[1741843784870,24.0387586,124.54,124.49,0.063]
[1741843785068,24.0387586,124.52,124.49,0.063]
[1741843785376,24.0387586,124.53,124.49,0.063]
[1741843785576,24.0387586,124.54,124.49,0.063]
[1741843786087,24.0387586,124.52,124.49,0.063]
[1741843786475,8.0314,124.51,124.49,0.063]
[1741843788383,8.0308,124.52,124.49,0.063]
[1741843789695,32.0695586,124.52,124.49,0.063]
[1741843791602,24.0387586,124.5,124.49,0.063]
[1741843791982,24.0387586,124.51,124.49,0.063]
[1741843792183,8.0308,124.52,124.49,0.063]
[1741843793998,24.0387586,124.54,124.49,1.7088]
[1741843794205,24.0387586,124.55,124.5,24.0387586]
[1741843794393,24.0387586,124.54,124.49,51.3721586]
[1741843794697,24.0387586,124.54,124.49,27.3334]
[1741843795071,24.0387586,124.54,124.49,51.3721586]
[1741843795767,24.0387586,124.54,124.49,27.3334]
[1741843796288,8.0301,124.53,124.49,27.3334]
[1741843796909,24.0387586,124.52,124.49,19.0738]
[1741843797500,24.0387586,124.5,124.49,19.0738]
[1741843797793,24.0387586,124.5,124.49,0.063]
[1741843798379,32.0708586,124.5,124.49,0.063]
[1741843798611,8.0321,124.5,124.49,0.063]
[1741843799397,24.0387586,124.52,124.49,0.063]
[1741843799609,8.0304,124.53,124.49,0.063]
[1741843799784,8.0304,124.53,124.49,24.1017586]
[1741843799982,8.0304,124.53,124.49,31.4617586]
[1741843800497,24.0387586,124.54,124.49,31.4617586]
[1741843800801,24.0387586,124.55,124.5,24.0387586]
[1741843801004,24.0387586,124.55,124.49,58.5051586]
[1741843801200,24.0387586,124.55,124.49,50.4725586]
[1741843801413,24.0387586,124.5,124.49,0.063]
[1741843802293,24.0387586,124.53,124.49,0.063]
[1741843802493,24.0387586,124.52,124.49,0.063]
[1741843803606,24.0387586,124.53,124.49,0.063]
[1741843803904,28.0988,124.56,124.49,24.1017586]
[1741843804123,24.0387586,124.55,124.49,43.1125586]
[1741843804612,32.0656586,124.58,124.52,44.0387586]
[1741843804817,32.0656586,124.58,124.53,24.0387586]
[1741843805105,24.18092017,124.57,124.52,26.4308]
[1741843805283,24.0387586,124.54,124.52,19.0108]
[1741843805476,24.0387586,124.54,124.49,154.2738]
[1741843805684,24.0387586,124.54,124.49,19.0738]
[1741843806384,24.0387586,124.53,124.49,19.0738]
[1741843806902,24.0387586,124.51,124.49,0.063]
[1741843808397,24.0387586,124.5,124.49,0.063]
[1741843808577,32.0708586,124.5,124.49,0.063]
[1741843808996,32.21302017,124.5,124.49,0.0001]
[1741843809178,51.0048306,124.5,124.49,0.0001]
[1741843810111,32.35518174,124.5,124.49,0.0001]
[1741843810295,51.0048306,124.5,124.49,0.0001]
[1741843810889,51.0048306,124.5,124.48,0.0001]
[1741843810890,57.0900306,124.5,124.48,0.0001]
[1741843811091,24.32308174,124.49,124.48,0.0001]
[1741843811617,31.74308174,124.49,124.48,0.0001]
[1741843811793,50.3927306,124.49,124.48,0.0001]
[1741843812498,32.21362017,124.49,124.48,0.0001]
[1741843812813,32.0714586,124.49,124.48,0.0001]
[1741843813011,8.0327,124.49,124.48,0.0001]
[1741843813320,32.35578174,124.49,124.48,0.0001]
[1741843813606,32.0714586,124.49,124.48,0.0001]
[1741843814911,24.0387586,124.49,124.48,0.0001]
[1741843815288,24.32308174,124.49,124.48,0.0001]
[1741843815513,24.18092017,124.49,124.48,0.0001]
[1741843815891,42.9727306,124.49,124.48,0.0001]
[1741843816413,57.49409741,124.49,124.48,0.0001]
[1741843816603,65.52679741,124.49,124.48,0.0001]
[1741843816796,64.52656341,124.49,124.48,0.0001]
[1741843816993,46.59282541,124.49,124.48,0.0001]
[1741843819220,65.52679741,124.49,124.48,0.0001]
[1741843819520,46.73498698,124.49,124.48,0.0001]
[1741843822405,46.59282541,124.49,124.48,0.0001]
[1741843824910,46.73498698,124.49,124.48,0.0001]
[1741843825115,65.52679741,124.49,124.48,0.0001]
[1741843829020,46.59282541,124.49,124.48,0.0001]
[1741843831128,65.52679741,124.49,124.48,0.0001]
[1741843835727,46.73498698,124.49,124.48,0.0001]
[1741843836629,65.52679741,124.49,124.48,0.0001]
[1741843837515,0.14216157,124.45,124.44,0.063]
[1741843837717,38.70228698,124.45,124.44,0.063]
[1741843837933,38.56012541,124.45,124.44,0.063]
[1741843838145,38.56012541,124.46,124.44,0.063]
[1741843838332,24.09765805,124.47,124.44,0.063]
[1741843839222,8.0334,124.48,124.44,0.063]
[1741843839223,32.13105805,124.48,124.44,0.063]
[1741843840621,24.09765805,124.47,124.44,0.063]
[1741843841358,24.09765805,124.46,124.44,0.063]
[1741843841532,24.09765805,124.45,124.44,0.063]
[1741843842228,24.09765805,124.46,124.44,0.063]
[1741843842829,20.0835,124.48,124.44,0.063]
[1741843842830,32.13295805,124.45,124.44,0.063]
[1741843846536,8.0353,124.45,124.44,0.063]
[1741843847432,24.09765805,124.48,124.44,0.063]
[1741843849627,0.03,124.49,124.45,1.5819]
[1741843850033,0.03,124.49,124.46,30.17965805]
[1741843850449,0.03,124.49,124.47,31.47765805]
[1741843850641,0.03,124.49,124.48,24.09765805]
[1741843850828,0.03,124.49,124.48,32.13105805]
[1741843851154,8.029,124.55,124.48,71.51556848]
[1741843851350,32.12665805,124.55,124.49,24.09765805]
[1741843851562,24.09765805,124.54,124.49,24.09765805]
[1741843852733,24.09765805,124.54,124.49,32.13035805]
[1741843852945,24.09765805,124.55,124.5,24.09765805]
[1741843853133,18.79181043,124.59,124.51,37.70375805]
[1741843853134,24.09765805,124.57,124.51,37.70375805]
[1741843853450,24.09765805,124.58,124.53,1.545]
[1741843853661,8.0263,124.59,124.54,24.09765805]
[1741843854039,32.12395805,124.59,124.53,25.64265805]
[1741843854244,24.09765805,124.57,124.53,1.545]
[1741843854758,24.09765805,124.58,124.53,1.545]
[1741843854945,24.09765805,124.58,124.53,25.64265805]
[1741843856251,24.09765805,124.58,124.53,44.65345805]
[1741843856646,24.09765805,124.57,124.53,20.5558]
[1741843858934,8.0282,124.56,124.53,20.5558]
[1741843859138,8.0282,124.56,124.53,1.545]
[1741843859335,8.0256,124.6,124.55,24.09765805]
[1741843859556,32.12325805,124.6,124.56,13.8748]
[1741843859762,24.09765805,124.59,124.56,13.8748]
[1741843860561,24.09765805,124.57,124.53,1.545]
[1741843860749,8.0295,124.54,124.52,6.5348]
[1741843861661,0.03,124.57,124.52,6.5348]
[1741843861954,8.0282,124.56,124.52,6.5348]
[1741843862643,24.09765805,124.55,124.52,6.5348]
[1741843862848,24.09765805,124.54,124.51,7.34]
[1741843863549,0.03,124.57,124.56,1.73516157]
[1741843863747,0.03,124.57,124.56,52.10145805]
[1741843863950,0.03,124.57,124.56,19.0108]
[1741843864149,0.03,124.57,124.52,1.5839]
[1741843864150,24.12765805,124.57,124.52,26.8863]
[1741843864443,8.0576,124.57,124.52,19.0108]
[1741843864639,24.09765805,124.54,124.5,19.0108]
[1741843865062,24.09765805,124.55,124.5,43.10845805]
[1741843865258,24.09765805,124.54,124.5,19.0108]
[1741843866449,24.09765805,124.52,124.48,220.4955]
[1741843866645,24.09765805,124.5,124.48,212.62]
[1741843867149,32.13005805,124.5,124.48,212.62]
[1741843867350,24.09765805,124.49,124.44,161.7138]
[1741843867661,24.09765805,124.48,124.44,26.5138]
[1741843868075,28.25486157,124.5,124.44,0.063]
[1741843868278,24.09765805,124.46,124.44,0.063]
[1741843868481,24.09765805,124.45,124.44,0.063]
[1741843869062,32.13295805,124.45,124.44,0.063]
[1741843869745,8.0353,124.45,124.44,0.063]
[1741843869945,32.13295805,124.45,124.44,0.063]
[1741843871574,24.09765805,124.46,124.44,0.063]
[1741843872770,32.13245805,124.46,124.44,0.063]
[1741843873147,24.09765805,124.45,124.44,0.063]
[1741843874673,32.13295805,124.45,124.44,0.063]
[1741843875554,51.06693005,124.45,124.44,0.063]
[1741843875866,51.06693005,124.45,124.44,0.0001]
[1741843877666,0.14216157,124.44,124.41,0.063]
[1741843877864,24.23981962,124.42,124.41,0.063]
[1741843878671,32.27701962,124.42,124.41,0.063]
[1741843878873,32.27701962,124.42,124.41,0.0001]
[1741843879174,51.06883005,124.42,124.41,0.0001]
[1741843879676,32.27701962,124.42,124.41,0.0001]
[1741843880272,32.13485805,124.42,124.41,0.0001]
[1741843881170,32.27701962,124.42,124.41,0.0001]
[1741843881562,51.06883005,124.42,124.41,0.0001]
[1741843881761,58.48883005,124.42,124.41,0.0001]
[1741843883581,39.69701962,124.42,124.41,0.0001]
[1741843883876,58.48883005,124.42,124.41,0.0001]
[1741843884676,32.13485805,124.42,124.41,0.0001]
[1741843885082,32.27701962,124.42,124.41,0.0001]
[1741843885476,51.06883005,124.42,124.41,0.0001]
[1741843888090,24.09765805,124.37,124.36,0.063]
[1741843889191,24.23981962,124.37,124.36,0.063]
[1741843889787,32.28031962,124.37,124.36,0.063]
[1741843890363,0.28432314,124.36,124.35,0.063]
[1741843890563,24.38198119,124.36,124.35,0.0001]
[1741843890786,31.78198119,124.36,124.35,0.0001]
[1741843891993,39.82308119,124.36,124.35,0.0001]
[1741843892366,32.13875805,124.36,124.35,0.0001]
[1741843893392,32.13555805,124.41,124.35,24.09775805]
[1741843893890,24.09765805,124.38,124.35,0.0001]
[1741843894073,0.14216157,124.4,124.35,0.0001]
[1741843894074,24.09765805,124.37,124.35,0.0001]
[1741843894268,38.6180424,124.37,124.35,0.0001]
[1741843894470,38.6180424,124.38,124.35,0.0001]
[1741843894772,38.6180424,124.4,124.35,0.0001]
[1741843894966,38.6180424,124.4,124.35,38.6181424]
[1741843895162,38.6180424,124.37,124.35,0.0001]
[1741843896193,8.0411,124.36,124.35,0.0001]
[1741843896376,46.6591424,124.36,124.35,0.0001]
[1741843896576,8.0411,124.36,124.35,0.0001]
[1741843897394,46.6591424,124.36,124.35,0.0001]
[1741843897593,8.0411,124.36,124.35,0.0001]
[1741843897794,8.0711,124.36,124.35,0.0001]
[1741843898571,46.6891424,124.36,124.35,0.0001]
[1741843901594,65.6231144,124.36,124.35,0.0001]
[1741843908400,0.28432314,124.32,124.31,0.0001]
[1741843908568,57.5520144,124.32,124.31,0.0001]
[1741843909495,65.5957144,124.32,124.31,0.0001]
[1741843911400,104.2137568,124.32,124.31,0.0001]
[1741843911698,57.5520144,124.29,124.28,0.0001]
[1741843912583,65.5976144,124.29,124.28,0.0001]
[1741843913697,20.599472,124.28,124.24,0.063]
[1741843913903,38.76020397,124.25,124.24,0.063]
[1741843914501,0.14216157,124.28,124.24,0.063]
[1741843914679,8.0469,124.27,124.24,0.063]
[1741843915000,32.2309316,124.27,124.24,0.063]
[1741843915600,24.32619317,124.26,124.24,0.063]
[1741843915984,24.32619317,124.25,124.24,0.063]
[1741843916780,51.1662036,124.25,124.24,0.0001]
[1741843916993,18.933972,124.24,124.22,0.063]
[1741843917202,24.1840316,124.23,124.22,0.063]
[1741843918382,38.7108022,124.23,124.22,0.063]
[1741843918880,46.7603022,124.23,124.22,0.063]
[1741843919086,65.6942742,124.23,124.22,0.0001]
[1741843920379,8.0495,124.23,124.22,0.0001]
[1741843920702,38.7108022,124.25,124.22,0.0001]
[1741843920878,8.0482,124.25,124.22,0.0001]
[1741843922012,8.0476,124.26,124.22,0.0001]
[1741843922309,0.14216157,124.28,124.23,38.7108022]
[1741843922514,0.14216157,124.26,124.22,0.0001]
[1741843923084,8.19016157,124.26,124.22,0.0001]
[1741843923501,38.7108022,124.28,124.22,38.7109022]
[1741843924504,38.7108022,124.27,124.22,38.7109022]
[1741843924706,38.7108022,124.27,124.22,0.0001]
[1741843924911,0.14216157,124.29,124.24,38.7108022]
[1741843925090,8.0463,124.28,124.24,38.7108022]
[1741843925291,8.18796157,124.29,124.24,38.7108022]
[1741843925512,0.14216157,124.26,124.23,7.42]
[1741843925697,38.85296377,124.26,124.22,0.0001]
[1741843926780,38.7108022,124.24,124.22,0.0001]
[1741843927405,46.90246377,124.23,124.22,0.0001]
[1741843927893,47.04462534,124.23,124.22,0.0001]
[1741843928105,65.6942742,124.23,124.22,0.0001]
[1741843928642,67.2250742,124.23,124.22,0.0001]
[1741843928821,0.14216157,124.21,124.2,0.0001]
[1741843928991,20.14216157,124.2,124.19,0.0001]
[1741843929314,26.986072,124.19,124.18,0.0001]
[1741843929487,104.4076764,124.19,124.18,0.0001]
[1741843929687,65.6968742,124.19,124.18,0.0001]
[1741843930628,65.6968742,124.19,124.11,0.03]
[1741843930629,18.933972,124.15,124.11,0.03]
[1741843930811,38.85296377,124.12,124.11,0.03]
[1741843931196,0.14216157,124.12,124.11,0.03]
[1741843931401,46.90766377,124.15,124.11,0.03]
[1741843931705,8.19626157,124.16,124.12,38.7108022]
[1741843932017,46.36341043,124.19,124.11,0.03]
[1741843932018,0.14216157,124.18,124.14,38.7108022]
[1741843932196,0.14216157,124.18,124.14,40.2768022]
[1741843932515,38.85296377,124.18,124.14,1.566]
[1741843933024,38.7108022,124.19,124.14,40.2768022]
[1741843933325,0.14216157,124.19,124.14,40.2768022]
[1741843933499,0.14216157,124.19,124.15,38.7108022]
[1741843933699,0.14216157,124.19,124.18,0.03]
[1741843934699,65.6968742,124.19,124.18,0.03]
[1741843936122,46.90506377,124.19,124.18,0.03]
[1741843936425,65.6968742,124.19,124.18,0.03]
[1741843937708,46.90506377,124.19,124.18,0.03]
[1741843937915,38.85296377,124.19,124.18,0.03]
[1741843938093,65.6968742,124.19,124.18,0.03]
[1741843939001,46.90506377,124.19,124.18,0.03]
[1741843939303,65.6968742,124.19,124.18,0.03]
[1741843939505,38.7108022,124.15,124.11,1.5398]
[1741843939713,38.85296377,124.16,124.11,1.5398]
[1741843940429,38.7108022,124.15,124.11,1.5398]
[1741843940630,0.14216157,124.15,124.11,1.5398]
[1741843940799,38.7108022,124.18,124.12,38.7108022]
[1741843941205,38.7108022,124.18,124.13,38.7108022]
[1741843941612,46.7641022,124.18,124.13,38.7108022]
[1741843942007,46.7641022,124.18,124.11,28.6079]
[1741843942008,0.14216157,124.15,124.11,20.5506]
[1741843942207,38.7108022,124.15,124.11,1.5398]
[1741843942408,0.14216157,124.14,124.11,1.5398]
[1741843943206,38.85296377,124.14,124.11,1.5398]
[1741843943520,8.056,124.13,124.11,0.03]
[1741843946028,46.7668022,124.13,124.11,0.03]
[1741843946512,38.7108022,124.12,124.11,0.03]
[1741843946715,46.7668022,124.13,124.11,0.03]
[1741843946913,0.14216157,124.12,124.11,0.03]
[1741843947125,38.85296377,124.12,124.11,0.03]
[1741843947516,38.7108022,124.12,124.11,0.03]
[1741843947716,46.90966377,124.12,124.11,0.03]
[1741843948831,65.7014742,124.12,124.11,0.0001]
[1741843949518,0.14216157,124.11,124.1,9.7e-05]
[1741843949724,57.6447742,124.11,124.09,9.7e-05]
[1741843949934,38.85296377,124.1,124.09,9.7e-05]
[1741843950509,0.14216157,124.1,124.09,9.7e-05]
[1741843950715,0.14216157,124.11,124.09,9.7e-05]
[1741843950921,8.058,124.1,124.09,9.7e-05]
[1741843953239,0.14216157,124.11,124.09,9.7e-05]
[1741843953415,38.85296377,124.1,124.09,9.7e-05]
[1741843954009,0.14216157,124.1,124.09,9.7e-05]
[1741843954210,38.85296377,124.1,124.09,9.7e-05]
[1741843954624,57.6447742,124.1,124.09,9.7e-05]
[1741843955037,38.85296377,124.1,124.09,9.7e-05]
[1741843955218,46.7681022,124.11,124.09,9.7e-05]
[1741843956340,38.85296377,124.1,124.09,9.7e-05]
[1741843956729,57.6447742,124.1,124.09,9.7e-05]
[1741843957545,65.7027742,124.1,124.09,9.7e-05]
[1741843958342,51.24593036,124.1,124.09,9.7e-05]
[1741843960337,0.14216157,124.08,124.05,0.03]
[1741843960536,116.90695836,124.1,124.05,0.03]
[1741843960537,43.18793036,124.06,124.05,0.03]
[1741843960731,24.39611993,124.06,124.05,0.03]
[1741843961126,24.25395836,124.07,124.05,0.03]
[1741843961330,8.0606,124.06,124.05,0.03]
[1741843962359,32.31395836,124.07,124.05,0.03]
[1741843962734,24.39611993,124.06,124.05,0.03]
[1741843963040,24.5382815,124.06,124.05,0.03]
[1741843963354,51.24853036,124.06,124.05,0.0001]
[1741843963842,75.50248872,124.06,124.05,0.0001]
[1741843964037,51.24853036,124.06,124.05,0.0001]
[1741843964243,101.30168872,124.06,124.05,0.0001]
[1741843964564,0.14216157,124.04,123.98,0.03]
[1741843964735,24.25395836,124.0,123.98,0.03]
[1741843965127,0.14216157,124.0,123.98,0.03]
[1741843965660,8.0645,124.0,123.98,0.03]
[1741843965856,24.25395836,124.03,123.98,0.03]
[1741843966154,8.0627,124.03,123.99,24.25395836]
[1741843966455,38.8271035,124.03,123.98,38.8571035]
[1741843966644,0.14216157,124.03,123.98,38.8571035]
[1741843967157,8.0593,124.08,124.0,26.3252]
[1741843967470,39.11142664,124.07,124.01,7.46]
[1741843967637,38.96926507,124.03,124.0,6.3252]
[1741843967833,38.8271035,124.05,124.0,6.3252]
[1741843968231,0.14216157,124.06,124.0,6.3252]
[1741843968232,38.96926507,124.06,124.01,38.8271035]
[1741843968433,38.96926507,124.08,124.02,38.8271035]
[1741843968664,38.8271035,124.07,124.01,38.8271035]
[1741843969159,38.8271035,124.06,124.0,45.1523035]
[1741843969564,46.8890035,124.04,124.0,6.3252]
[1741843969767,38.96926507,124.03,124.0,6.3252]
[1741843969942,38.8271035,124.04,124.0,6.3252]
[1741843970147,0.14216157,124.03,124.0,6.3252]
[1741843970343,38.8271035,124.02,123.99,1.5981]
[1741843970750,0.14216157,124.03,123.99,1.5981]
[1741843970949,46.8885035,124.05,124.0,38.8271035]
[1741843971259,47.02996507,124.06,124.0,38.8271035]
[1741843971770,46.8878035,124.06,124.0,46.8915035]
[1741843972359,46.8878035,124.06,124.01,38.8271035]
[1741843972559,38.8901035,124.07,124.02,45.3159035]
[1741843973067,46.9501035,124.07,124.02,6.4888]
[1741843973252,38.8901035,124.07,124.02,45.3159035]
[1741843973448,0.063,124.07,124.02,45.3159035]
[1741843974047,38.8901035,124.07,124.02,45.3159035]
[1741843974571,38.8901035,124.07,124.04,40.3370035]
[1741843974572,0.063,124.07,124.04,40.3370035]
[1741843975260,0.063,124.07,124.04,1.5099]
[1741843975673,38.8901035,124.07,124.04,1.5099]
[1741843977068,0.063,124.07,124.04,1.5099]
[1741843979068,0.063,124.07,124.04,40.3370035]
[1741843979365,0.063,124.07,124.05,7.48]
[1741843981359,38.8901035,124.07,124.04,1.5099]
[1741843981950,8.0606,124.06,124.04,1.5099]
[1741843982769,8.1232,124.07,124.04,1.5099]
[1741843983063,8.1232,124.07,124.02,199.5267035]
[1741843983267,38.96926507,124.06,124.02,6.4888]
[1741843983459,38.8271035,124.05,124.02,0.03]
[1741843983670,38.96926507,124.03,124.02,0.03]
[1741843984050,47.03176507,124.03,124.02,0.03]
[1741843984748,8.20466157,124.03,124.02,0.03]
[1741843984948,8.0619,124.04,124.02,0.03]
[1741843985369,46.8890035,124.04,124.02,0.03]
[1741843987075,8.0619,124.04,124.02,0.03]
[1741843987571,38.96926507,124.03,124.02,0.0001]
[1741843987879,57.7610755,124.03,124.02,0.0001]
[1741843988059,47.03176507,124.03,124.02,0.0001]
[1741843991347,67.4557755,124.03,124.02,0.0001]
[1741843992153,8.20466157,124.03,124.02,0.0001]
[1741843992875,47.03176507,124.03,124.02,0.0001]
[1741843993713,0.14216157,124.01,123.96,6.1683]
[1741843993979,38.8271035,123.99,123.96,0.03]
[1741843994673,8.0658,123.98,123.96,0.03]
[1741843995780,8.0653,123.99,123.97,38.8271035]
[1741843995957,8.0612,124.05,123.99,1.5961]
[1741843996156,8.0612,124.05,124.01,38.8271035]
[1741843996474,46.8883035,124.05,124.01,7.46]
[1741843997281,8.0612,124.05,124.01,7.46]
[1741843997893,8.1238,124.06,124.02,38.8271035]
[1741843998073,0.063,124.06,124.03,38.8271035]
[1741843998388,0.063,124.06,124.04,6.1765]
[1741843998564,0.063,124.06,124.04,45.0036035]
[1741843998768,0.063,124.06,124.05,47.8849035]
[1741843999086,0.063,124.06,124.05,66.8957035]
[1741843999490,0.063,124.06,124.05,85.68751393]
[1741843999797,0.063,124.07,124.06,18.79181043]
[1741843999979,0.063,124.07,124.06,57.61891393]
[1741844000179,0.063,124.07,124.06,38.8271035]
[1741844000376,0.063,124.07,124.06,211.9718755]
[1741844000880,0.063,124.11,124.1,24.96411043]
[1741844001086,0.063,124.11,124.1,227.1908755]
[1741844001286,0.063,124.11,124.1,227.04871393]
[1741844001489,0.063,124.11,124.1,227.1908755]
[1741844002372,0.063,124.19,124.13,20.0]
[1741844002590,46.9426035,124.19,124.14,46.3071035]
[1741844002888,0.063,124.19,124.14,46.3071035]
[1741844003188,0.063,124.19,124.16,38.8271035]
[1741844003713,0.063,124.19,124.14,46.3071035]
[1741844003872,0.063,124.19,124.16,38.8271035]
[1741844004074,0.063,124.19,124.17,38.8271035]
[1741844004798,0.063,124.19,124.16,6.1723]
[1741844004799,0.063,124.19,124.18,46.3071035]
[1741844004978,0.063,124.19,124.18,65.09891393]
[1741844005183,0.063,124.19,124.18,46.3071035]
[1741844005495,0.063,124.19,124.18,7.48]
[1741844006368,0.063,124.19,124.18,46.3071035]
[1741844006572,0.063,124.19,124.18,65.3179035]
[1741844007479,0.063,124.19,124.17,136.7667]
[1741844007480,0.063,124.19,124.16,13.6523]